Cogmind - Beta 15 @@@ ROGUE MODE // 2025.05.28 @ 01:26:19 Player: KTG-V3 Result: Destroyed by D-53 Grenadier with Mini Grenade Launcher Performance ------------- Evolutions (0) 0 Regions Visited (4) 800 Robots Destroyed (41) 205 Value Destroyed (783) 783 Prototype IDs (2) 40 Alien Tech Used (0) 0 Bonus (39) 39 TOTAL SCORE: 1867 Bonus ------- Follower Combat Kills 39 Cogmind --------- Core Integrity 0/250 Matter 300/300 Energy 249/250 System Corruption 4% Temperature Cool (0) Movement Rolling (130) Ox2 Location -9/Mines Parts ------- > --- POWER (1) -------- Ion Engine (fused) > --- PROPULSION (2) --- Compact Wheel > --- UTILITY (2) ------ Improved Heat Sink High-capacity Storage Unit > --- WEAPON (2) ------- (None) > --- INVENTORY (20) --- Ion Engine Ion Engine Light Treads Heat Sink Heat Sink Faulty Experimental Sensor Array Seismic Detector Light Armor Plating Beam Cannon Beam Cannon Assault Rifle Mining Laser Peak State ------------ > --- POWER ------------ Ion Engine > --- PROPULSION ------- Light Treads Light Treads > --- UTILITY ---------- Improved Heat Sink Large Storage Unit > --- WEAPON ----------- Beam Cannon Beam Cannon > --- INVENTORY -------- Ion Engine Ion Engine Wheel Compact Wheel Heat Sink Heat Sink Experimental Sensor Array Seismic Detector Light Armor Plating Beam Cannon Beam Cannon Beam Cannon Assault Rifle Mining Laser [Rating: 11] Favorites ----------- Power Ion Engine Engine Ion Engine Propulsion Light Treads Treads Light Treads Wheel Compact Wheel Utility Large Storage Unit Device Seismic Detector Storage Large Storage Unit Weapon Beam Cannon Energy Gun Small Laser Energy Cannon Beam Cannon Ballistic Gun Assault Rifle Build | -11 -10 -10 -10 -9 ------- Run | Yrd Mat Min Exi Min Slots Evolved . | . . . . . Power . | . . . . . Propulsion . | . . . . . Utility . | . . . . . Weapon . | . . . . . Parts Attached 24 | 8 11 3 1 1 Power 2 | 1 1 . . . Engine 2 | 1 1 . . . Core . | . . . . . Reactor . | . . . . . Propulsion 4 | 2 1 . . 1 Treads 3 | 2 . . . 1 Leg . | . . . . . Wheel 1 | . 1 . . . Hover . | . . . . . Flight . | . . . . . Utility 11 | 3 5 2 1 . Device 7 | 2 3 2 . . Storage 4 | 1 2 . 1 . Processor . | . . . . . Hackware . | . . . . . Protection . | . . . . . Artifact . | . . . . . Weapon 7 | 2 4 1 . . Energy Gun 2 | 1 1 . . . Energy Cannon 4 | . 3 1 . . Ballistic Gun 1 | 1 . . . . Ballistic Cannon . | . . . . . Launcher . | . . . . . Special Weapon . | . . . . . Impact Weapon . | . . . . . Slashing Weapon . | . . . . . Piercing Weapon . | . . . . . Special Melee Weapon . | . . . . . Unidentified Prototypes . | . . . . . Parts Lost 6 | . 1 . . 5 Power . | . . . . . Propulsion 2 | . . . . 2 Utility . | . . . . . Weapon 4 | . 1 . . 3 Highest Loss Streak 5 | . 1 . . 5 To Critical Strikes 1 | . . . . 1 Average Backups 13 | 4 13 14 15 13 Power 2 | . 2 2 2 2 Propulsion 3 | 3 4 2 2 1 Utility 3 | . 3 4 5 5 Weapon 4 | . 2 4 6 4 Tool/Special . | . . . . . Unused Backups 22 | . 10 4 . 8 Power 5 | . 1 2 . 2 Propulsion 5 | . 4 1 . . Utility 3 | . . 1 . 2 Weapon 9 | . 5 . . 4 Tool/Special . | . . . . . Average Slot Usage (%) 92 | . 98 99 71 96 Engine 13 | . 13 14 14 14 Treads 26 | . 24 28 28 26 Wheel 1 | . 3 . . 1 Device 13 | . 13 13 14 14 Storage 14 | . 14 14 14 14 Energy Gun 3 | . 7 . . . Energy Cannon 12 | . 6 28 . 24 Ballistic Gun 5 | . 13 . . . Peak Build Rating 11 | 9 9 11 9 11 Average Rating 7 | 6 7 8 7 9 On Entrance 6 | . 7 8 9 9 Naked Turns . | . . . . . Heaviest Build 52 | 12 32 32 52 52 Greatest Support 40 | 40 40 40 40 40 Greatest Overweight (x) 2 | . 1 . 1 2 Average Overweight (x) . | . . . . 1 Largest Inventory Capacity 20 | 8 15 15 20 20 Average Capacity 15 | 7 14 15 17 20 Most Carried 16 | 6 15 15 16 14 Average Carried 13 | 4 13 14 15 13 Final Capacity 20 | 8 15 15 20 20 Final Carried 15 | 6 15 14 14 12 Class Distribution -------------------- 100% | Mutant Dominant Class ---------------- Mutant | -10/Materials Mutant | -10/Mines Mutant | -10/Exiles Mutant | -9/Mines Resources | -11 -10 -10 -10 -9 ----------- Run | Yrd Mat Min Exi Min Matter Collected 1003 | 307 524 118 9 45 Remotely . | . . . . . Salvage Created 1347 | 164 841 289 . 53 Parts 65 | 6 45 12 . 2 Haulers Intercepted 2 | . 2 . . . Recyclers Shooed 1 | . 1 . . . Parts Field Recycled . | . . . . . Retrieved Matter . | . . . . . Parts Self-Destructed . | . . . . . Prevented . | . . . . . Kills | -11 -10 -10 -10 -9 ------- Run | Yrd Mat Min Exi Min Combat Hostiles Destroyed 21 | . 16 5 . . Guns 11 | . 11 . . . Cannons 9 | . 4 5 . . Classes Destroyed 9 | 2 7 . . . Worker 4 | . 3 1 . . Builder 1 | . 1 . . . Tunneler 6 | 3 . 3 . . Hauler 2 | . 2 . . . Recycler 3 | 1 . 1 . 1 Operator 1 | . 1 . . . Watcher 3 | . 3 . . . Swarmer 5 | . 3 2 . . Grunt 16 | . 13 3 . . Best Kill Streak 4 | 2 4 2 . 1 Combat Bots Only 3 | . 3 2 . . Max Kills in Single Turn 2 | 1 2 1 . 1 Gunslinging . | . . . . . Exploded . | . . . . . Melee . | . . . . . Uniques/NPCs Destroyed . | . . . . . Combat | -11 -10 -10 -10 -9 -------- Run | Yrd Mat Min Exi Min Hostile Shots Fired 148 | . 99 24 . 25 Missed 36 | . 27 4 . 5 Hits 112 | . 72 20 . 20 Melee 1 | . . . . 1 Projectile 111 | . 72 20 . 19 AOE 12 | . . . . 12 Critical Strikes 3 | . . 2 . 1 Damage Taken 1590 | . 803 215 . 572 Core 255 | . 114 69 . 72 Absorbed by Shields . | . . . . . Regen/Repaired (Parts) 313 | . 313 . . . Core Remaining (%) 100 | 100 . . . . Volleys Fired 131 | 9 91 22 . 9 Largest 2 | 2 2 2 . 2 Hottest 120 | 60 85 120 . 120 Shots Fired 262 | 18 181 45 . 18 Gun 172 | 18 154 . . . Cannon 90 | . 27 45 . 18 Launcher . | . . . . . Special . | . . . . . Kinetic 100 | 9 91 . . . Thermal 162 | 9 90 45 . 18 Explosive . | . . . . . Electromagnetic . | . . . . . Robot Hit Streak 17 | 13 17 12 . 13 Robot Miss Streak 3 | 1 3 3 . 2 Penetration Max . | . . . . . Secondary Targets 1 | . 1 . . . Max Gunslinging Chain 1 | . 1 . . . Shots Hit Robots 156 | 13 104 28 . 11 Core Hits 59 | 5 40 11 . 3 Critical Kills 1 | . 1 . . . Critical Parts Destroyed . | . . . . . Critical Strikes 3 | . 3 . . . Burn 2 | . 2 . . . Meltdown 1 | . 1 . . . Melee Attacks . | . . . . . Impact . | . . . . . Slashing . | . . . . . Piercing . | . . . . . Sneak Attacks . | . . . . . Combat Hostiles . | . . . . . Follow-up Attacks . | . . . . . Damage Inflicted 2364 | 152 1520 472 . 220 Guns 1336 | 152 1184 . . . Cannons 1019 | . 336 472 . 211 Explosions . | . . . . . Melee . | . . . . . Ramming 9 | . . . . 9 Kinetic 757 | 64 693 . . . Thermal 1598 | 88 827 472 . 211 Explosive . | . . . . . Electromagnetic . | . . . . . Impact . | . . . . . Slashing . | . . . . . Piercing . | . . . . . Highest Corruption 4 | . 1 1 1 4 Average Corruption 1 | . 1 1 1 1 Corruption Purged . | . . . . . Corruption Blocked . | . . . . . Effects 27 | . 8 10 8 1 Message Errors 6 | . . 1 4 1 Matter Fused 12 | . 6 5 1 . Heat Flow Errors 2 | . 1 1 . . Energy Discharges 1 | . . . 1 . Parts Fused 1 | . . . 1 . Data Loss (minor) 3 | . 1 2 . . Data Loss (major) 1 | . . . 1 . Misfires 1 | . . 1 . . Overload Shots . | . . . . . Overflow Damage 18 | . . 15 . 3 Projectiles 18 | . . 15 . 3 Explosions . | . . . . . Melee . | . . . . . Knockbacks . | . . . . . Impact . | . . . . . Kinetic . | . . . . . Secondary . | . . . . . Self-Inflicted Damage 4 | . . . . 4 Shots . | . . . . . Rammed 1 | . . . . 1 Targets Rammed 1 | . . . . 1 Kicked . | . . . . . Crushed . | . . . . . Highest Temperature 276 | . 156 276 . 102 Average Temperature 49 | . 18 75 . 40 Received Heat Transfer 549 | . 417 78 . 54 Siege Activations . | . . . . . Martial Activations . | . . . . . Shielding Activations . | . . . . . Robots Disrupted . | . . . . . Combat Hostiles . | . . . . . Robots Corrupted . | . . . . . Combat Hostiles . | . . . . . Parts Fried . | . . . . . Impact Corruptions . | . . . . . Robots Melted 2 | . 2 . . . Combat Hostiles 1 | . 1 . . . Parts Melted 10 | . 7 3 . . Heat Transferred 3653 | 200 2010 999 . 444 Parts Sabotaged . | . . . . . Parts Stolen . | . . . . . Parts Stripped . | . . . . . Power Chain Reactions . | . . . . . Alert | -11 -10 -10 -10 -9 ------- Run | Yrd Mat Min Exi Min Maximum Alert Level . | . . . . . Low Security (%) 100 | 100 100 100 . 100 Level 1 . | . . . . . Level 2 . | . . . . . Level 3 . | . . . . . Level 4 . | . . . . . Level 5 . | . . . . . High Security . | . . . . . Max Security . | . . . . . Peak Influence 147 | 10 147 71 . 5 Initial 35 | . . 35 . . Average 41 | . 72 13 . . Influence Increases 854 | 20 597 232 . 5 Destroy 0b10 Robot/C 480 | . 320 160 . . Destroy 0b10 Robot/NC 100 | 20 50 25 . 5 Destroy Leader 110 | . 80 30 . . Allied During Kill 17 | . . 17 . . Successful Hack 26 | . 26 . . . Select Force Hacks 60 | . 60 . . . Destroy Structure 1 | . 1 . . . Lose Combat Pursuer 60 | . 60 . . . Influence Decreases 854 | 20 506 315 8 5 Entered New Map 64 | . . 56 8 . Time Decay 760 | 20 496 239 . 5 Lost Part 10 | . 10 . . . Lost Ally 20 | . . 20 . . Squads Dispatched 5 | . 5 . . . Investigation 4 | . 4 . . . Extermination . | . . . . . Reinforcement 1 | . 1 . . . Assault . | . . . . . Garrison . | . . . . . Intercept . | . . . . . Searches Triggered . | . . . . . Construction Impeded . | . . . . . Haulers Reinforced . | . . . . . Active Scanning Responses . | . . . . . Cargo Convoy Interrupts . | . . . . . Stealth | -11 -10 -10 -10 -9 --------- Run | Yrd Mat Min Exi Min Distress Signals 2 | . 2 . . . Communications Jammed . | . . . . . Distress Signals . | . . . . . Times Spotted 46 | . 34 8 . 4 Peak Tracking Total 4 | . 4 3 . 4 Tactical Retreats 3 | . 3 . . . Traps | -11 -10 -10 -10 -9 ------- Run | Yrd Mat Min Exi Min Traps Triggered . | . . . . . Indirectly . | . . . . . Trap Hack Attempts . | . . . . . Triggered . | . . . . . Disarmed . | . . . . . Reprogrammed . | . . . . . Reused . | . . . . . Traps Extracted . | . . . . . Installed 2 | . . 2 . . Triggered . | . . . . . Machines | -11 -10 -10 -10 -9 ---------- Run | Yrd Mat Min Exi Min Machines Disabled . | . . . . . Max in Single Turn . | . . . . . Machines Repaired . | . . . . . Machines Dismantled . | . . . . . Machines Sabotaged . | . . . . . Overloaded Fab Kills . | . . . . . Hacking | -11 -10 -10 -10 -9 --------- Run | Yrd Mat Min Exi Min Machines Accessed 11 | . 10 . 1 . Terminals 7 | . 7 . . . Fabricators . | . . . . . Repair Stations 1 | . 1 . . . Recycling Units 2 | . 2 . . . Scanalyzers . | . . . . . Garrison Access . | . . . . . Total Hacks 46 | . 42 . 4 . Successful 27 | . 23 . 4 . Failed 18 | . 18 . . . Catastrophic 1 | . 1 . . . Database Lockouts 1 | . 1 . . . Manual 20 | . 20 . . . Terminals 27 | . 27 . . . Fabricators . | . . . . . Repair Stations 12 | . 12 . . . Recycling Units 3 | . 3 . . . Scanalyzers . | . . . . . Garrison Access . | . . . . . Terminal Hacks 12 | . 8 . 4 . Record 4 | . . . 4 . Part Schematic 1 | . 1 . . . Prototype ID Bank 1 | . 1 . . . Branch Access Points 1 | . 1 . . . Emergency Access Points 1 | . 1 . . . Locate Traps 1 | . 1 . . . Maintenance Status 1 | . 1 . . . Surveillance Status 1 | . 1 . . . Hauler Manifests 1 | . 1 . . . Fabricator Hacks . | . . . . . Repair Station Hacks 10 | . 10 . . . Scan Component 5 | . 5 . . . Repair 5 | . 5 . . . Recycling Unit Hacks 1 | . 1 . . . Retrieve Components 1 | . 1 . . . Scanalyzer . | . . . . . Garrison Access Hacks . | . . . . . Unauthorized Hacks 4 | . 4 . . . Terminals 2 | . 2 . . . Botnet 2 | . 2 . . . Fabricators . | . . . . . Repair Stations . | . . . . . Recycling Units 2 | . 2 . . . Tunnel 2 | . 2 . . . Scanalyzers . | . . . . . Garrison Access . | . . . . . Data Cores Recovered . | . . . . . Used . | . . . . . Hacking Detections 7 | . 7 . . . Full Trace Events 2 | . 2 . . . Feedback Events 1 | . 1 . . . Corruption 1 | . 1 . . . Feedback Blocked . | . . . . . Robot Schematics Acquired . | . . . . . Robots Built . | . . . . . Authchips . | . . . . . Time . | . . . . . Total Robot Build Rating . | . . . . . Part Schematics Acquired 1 | . 1 . . . Parts Built . | . . . . . Authchips . | . . . . . Time . | . . . . . Total Part Build Rating . | . . . . . Parts Repaired 5 | . 5 . . . Time 130 | . 130 . . . Parts Recycled . | . . . . . Recycled Matter . | . . . . . Retrieved Matter . | . . . . . Retrieved Components . | . . . . . Parts Scanalyzed . | . . . . . Part Schematics Acquired . | . . . . . Parts Damaged . | . . . . . Bothacking | -11 -10 -10 -10 -9 ------------ Run | Yrd Mat Min Exi Min Used RIF Installer . | . . . . . Robots Hacked . | . . . . . Non-combat . | . . . . . Combat . | . . . . . Robot Hacks Applied . | . . . . . Relay Couplers Released . | . . . . . Fabnet Peak Effective % . | . . . . . Robots Rewired . | . . . . . Allies Hacked . | . . . . . Hacks Repelled . | . . . . . Allies | -11 -10 -10 -10 -9 -------- Run | Yrd Mat Min Exi Min Total Allies 3 | . . 3 . . Largest Group 3 | . . 3 . . Highest-Rated Group 40 | . . 40 . . Highest-Rated Ally 16 | . . 16 . . Total Orders . | . . . . . Ally Attacks 26 | . . 26 . . Total Damage 286 | . . 286 . . Kills 3 | . . 3 . . Allies Corrupted . | . . . . . Allies Melted . | . . . . . Intel | -11 -10 -10 -10 -9 ------- Run | Yrd Mat Min Exi Min Active Infowar (turns) 2836 | 83 903 970 781 99 Terrain 47 | 47 . . . . Seismic 2789 | 36 903 970 781 99 Robot Analysis Total . | . . . . . Derelict Logs Recovered 1 | . . 1 . . Drone Launches . | . . . . . Drone Recoveries . | . . . . . Exploration | -11 -10 -10 -10 -9 ------------- Run | Yrd Mat Min Exi Min Turns Passed 3702 | 247 1464 1062 781 148 Spaces Moved 1800 | 124 637 582 404 53 Core 3 | 3 . . . . Treads 1624 | 121 475 582 404 42 Legs . | . . . . . Wheels 173 | . 162 . . 11 Hover . | . . . . . Flight . | . . . . . Fastest Speed 50 | 50 115 160 160 130 Average Speed 164 | 157 148 160 192 217 Slowest Speed 240 | 160 160 160 240 240 Overloaded Moves . | . . . . . Propulsion Burnouts . | . . . . . Robots Hopped . | . . . . . Potential Cave-ins . | . . . . . Cave-ins Triggered . | . . . . . Exploration Rate (%) 56 | 8 92 94 68 20 Regions Visited 4 Branch Regions 3 Pre-discovered Areas 3 | . 2 . 1 . Known Exits Taken 1 | . 1 . . . Unknown Exits Taken 3 | 1 . 1 1 . Scrap Searched 3 | . . 2 . 1 Spaces Dug . | . . . . . Terrain Destroyed . | . . . . . Melee . | . . . . . Projectile . | . . . . . AOE . | . . . . . Terrain Rammed . | . . . . . Walls Destroyed . | . . . . . Machines Disabled . | . . . . . Actions | -11 -10 -10 -10 -9 --------- Run | Yrd Mat Min Exi Min Total 2283 | 155 977 673 411 67 Wait 241 | 8 191 42 . . Move 1796 | 123 636 581 403 53 Hop . | . . . . . Pick Up 37 | 6 22 8 1 . Fast Attach 15 | 8 6 1 . . Attach 5 | . 1 . 2 2 Detach 2 | . . . 2 . Swap 24 | . 14 7 1 2 Drop 29 | 1 16 10 2 . Fire 131 | 9 91 22 . 9 Melee . | . . . . . Ram 1 | . . . . 1 Kick . | . . . . . Crush . | . . . . . Escape Stasis . | . . . . . Rewire . | . . . . . Trap 2 | . . 2 . . Miscellaneous . | . . . . . Route ------- -11/Scrapyard -10/Materials (discovered 4 exits: [*Mat x3] / *Min) -10/Mines (discovered 3 exits: [*Mat x2] / *Exi) -10/Exiles (discovered 2 exits: [*Min x2]) -9/Mines (discovered 1 exit: [*Mat]) History --------- Turn | Location | Event 3 | -11/Scrapyard | Discovered new exit (range 16) 248 | -11/Scrapyard | Entered Materials 249 | -10/Materials | Met a group of wandering Federalists 306 | -10/Materials | Build established: Mutant 616 | -10/Materials | Discovered new exit (range 8) 858 | -10/Materials | Discovered new exit (range 14) 866 | -10/Materials | Central database locked down 866 | -10/Materials | Identified exit to Mines 924 | -10/Materials | Discovered new exit (range 5) 966 | -10/Materials | Repaired Lgt. Treads 993 | -10/Materials | Repaired Lgt. Treads 1020 | -10/Materials | Repaired Ion Engine 1048 | -10/Materials | Repaired Assault Rifle 1075 | -10/Materials | Repaired Seismic Detector 1506 | -10/Materials | Discovered new exit (range 14) 1712 | -10/Materials | Entered Mines 1774 | -10/Mines | Found a hidden stash of uninstalled traps 1787 | -10/Mines | Met a Derelict bent on vengeance 1904 | -10/Mines | Assisted by bots powering up and referring to "LRC-V3" 1939 | -10/Mines | Learned 2 Materials zone layouts 2004 | -10/Mines | Core integrity fell below 50% 2257 | -10/Mines | Found a damaged Exp. Sensor Array with a note attached 2261 | -10/Mines | Found Prototype Device 2359 | -10/Mines | Lost 3 allies 2409 | -10/Mines | Deemed a non-threat by the Exiles lab entrance 2409 | -10/Mines | Discovered new exit (range 5) 2581 | -10/Mines | Discovered new exit (range 9) 2628 | -10/Mines | Discovered new exit (range 7) 2774 | -10/Mines | Entered Exiles 2814 | -10/Exiles | Met 8R-AWN 2843 | -10/Exiles | Met EX-HEX 2891 | -10/Exiles | Met EX-BIN 2909 | -10/Exiles | Met EX-DEC 2920 | -10/Exiles | Learned location of Zion (-6) 3039 | -10/Exiles | Visited The Gauntlet 3201 | -10/Exiles | Discovered new exit (range 12) 3522 | -10/Exiles | Discovered new exit (range 14) 3555 | -10/Exiles | Entered Mines 3563 | -9/Mines | Discovered new exit (range 9) 3643 | -9/Mines | Assembled infested the area 3648 | -9/Mines | Assisted by a Guerilla fighting off Assembled 3667 | -9/Mines | Core integrity fell below 20% 3703 | -9/Mines | Destroyed by D-53 Grenadier with Mini Grenade Launcher Last Messages --------------- 03680_ System corrupted by crushing effect (+2). 03680_ System corrupted by crushing effect (+1). 03681_ T-07 Excavator is excavating. 03681_ U-05 Engineer lays Concrete. 03682_ U-05 Engineer builds a Wall. 03685_ K-01 Serf collects debris. 03685_ T-07 Excavator is excavating. 03686_ U-05 Engineer builds a Wall. 03689_ K-01 Serf collects debris. 03689_ T-07 Excavator is excavating. 03690_ U-05 Engineer lays Concrete. 03691_ The unstable cave ceiling collapses. 03691_ U-05 Engineer lays Concrete. 03692_ Slammed into D-53 Grenadier. 03692_ Destabilizing: System interference. 03692_ Imp. Heat Sink temporarily disabled. 03692_ U-05 Engineer lays Concrete. 03693_ U-05 Engineer builds a Wall. 03695_ Acquired 15 matter. 03703_ Lgt. Treads destroyed. Map ----- +----------------------------------------------------+ | ?????????????????????????????????????? | | ?????????????????????????????????????? | | ?????????????????????????????????????? | | ?????????????????????????????????????? | | ?????????????????????????????????????? | | ?????????????????????????????????????? | | ???????????????????????? #???????????? | | ???????????????????????? #???##?????? | | ????????????????????#??? ### #####?? | | ????????????##?????# ??? # ### | | ????????????? ???? %???? # | | ?????????????? ?? ???? | | ?????????????? ? ???? % | | ??????????????? """ #???# | | ???????????????? """ #???# | | ????????????????? #??## # | | ????????????????? ?## # ?? | | ?????????????????? ## # # ??#? | | ????????####??????? ## # # #? | | ???????## ##??????# ## # #? | | ??????## ##???### ## #? | | ??????# ##??# % "# | | ??????# #### #### # # | | ??????# d #??## # | | ??????# """ #####???## # " | | ??????## """ @##???????# # # | | ??????## """ ##???####?# #####? # | | ?????## #??### ### #?????? # | | ????## r #### # #??????? # | | ????# < k ## ###????????# | | ????# ### #?###??????????? | | ????## #?## ##??????????????? | | ?????##### ##??## ##???????????????? | | ?????????####????####????????????????? | | ?????????????????????????????????????? | | ?????????????????????????????????????? | | | | | | | | | | | | | | | | | | | | | | | | | | | | | +----------------------------------------------------+ Best States ------------- Heat Dissipation 39 Energy Generation 10 Energy Capacity 250 Matter Stores 300 Matter Capacity 300 Sight Range 16 Terrain Scan Range 16 Terrain Scan Density 10 Evasion (%) 40 Recoil Reduction 2 Item Schematics ----------------- Huge Storage Unit | -10/Materials | Hacked Robot Schematics ------------------ None Fabricated ------------ Nothing Repaired ---------- Lgt. Treads | 10% | -10/Materials Lgt. Treads | 20% | -10/Materials Ion Engine | 73% | -10/Materials Assault Rifle | 41% | -10/Materials Seismic Detector | 90% | -10/Materials Alien Tech Used ----------------- None Achievements -------------- None Challenges ------------ None Game ------ Seed GaussRainbowShockpuncher Manual? 0 Play Time 00:18:03 Cumulative 287.5 hours Start 2025.05.27 @ 02:47:09 End 2025.05.28 @ 01:26:19 Sessions 6 Manual Loads 0 Difficulty Rogue Special Mode None Game No. 74 Rogue 73 Adventurer 1 Explorer 0 Win Type - Total 26 Types 6/4/7/0/0/0/8/0/0/1 Lore% 64 Gallery% 73 Achievement% 69 Wizard Run 0 Options --------- Layout 0 ASCII 0 Keyboard 0 Movement Mouse Keybinds 0 Fullscreen 1 Font 18/Terminus Map View 76x50 Zoom Use 0% Tactical HUD 1 Map Filters NONE Filters NONE Steam 0 RUN: 3ff3566c-347c-45dd-a041-afe2f5530a4a